[Event "Vegagatan U1800-A"]
[Site "Goteborgs Schackcentrum, Vegatan 20, Gothenburg, Sweden"]
[Date "2025.05.03"]
[Round "2.1"]
[White "Hitcher, Oscar"]
[Black "Gustavsson, Ville"]
[Result "0-1"]
[TimeControl "30 minutes + 30 seconds per move from move one"]
[WhiteFideId "1746901"]
[BlackFideId "1792822"]
[WhiteElo "1716"]
[BlackElo "1752"]

1. Nf3 {[%clk 00:30:53]} {[%emt 00:00:06]} Nf6 {[%clk 00:30:47]} {[%emt
00:00:15]} 2. e3 {[%clk 00:31:05]} {[%emt 00:00:18]} g6 {[%clk 00:30:54]}
{[%emt 00:00:24]} 3. d4 {[%clk 00:31:08]} {[%emt 00:00:26]} Bg7 {[%clk
00:30:55]} {[%emt 00:00:29]} 4. c4 {[%clk 00:30:17]} {[%emt 00:01:21]} d6
{[%clk 00:30:42]} {[%emt 00:00:44]} 5. Nc3 {[%clk 00:30:12]} {[%emt 00:00:34]}
O-O {[%clk 00:30:40]} {[%emt 00:00:31]} 6. Be2 {[%clk 00:30:11]} {[%emt
00:00:31]} c5 {[%clk 00:30:24]} {[%emt 00:00:47]} 7. O-O {[%clk 00:29:54]}
{[%emt 00:00:47]} Bf5 {[%clk 00:28:47]} {[%emt 00:02:07]} 8. Nh4 {[%clk
00:29:00]} {[%emt 00:01:23]} Bd7 {[%clk 00:28:15]} {[%emt 00:01:03]} 9. Qb3
{[%clk 00:28:18]} {[%emt 00:01:12]} Nc6 {[%clk 00:25:06]} {[%emt 00:03:39]} 10.
Rd1 {[%clk 00:25:48]} {[%emt 00:02:59]} cxd4 {[%clk 00:22:45]} {[%emt
00:02:52]} 11. exd4 {[%clk 00:25:43]} {[%emt 00:00:35]} Qc7 {[%clk 00:21:38]}
{[%emt 00:01:36]} 12. Nb5 {[%clk 00:20:40]} {[%emt 00:05:34]} Qb6 {[%clk
00:18:44]} {[%emt 00:03:25]} 13. Be3 {[%clk 00:20:15]} {[%emt 00:00:53]} Na5
{[%clk 00:16:06]} {[%emt 00:03:08]} 14. Qc2 {[%clk 00:19:15]} {[%emt 00:01:30]}
Rac8 {[%clk 00:15:35]} {[%emt 00:01:02]} 15. b3 {[%clk 00:18:18]} {[%emt
00:01:25]} Bxb5 {[%clk 00:15:37]} {[%emt 00:00:29]} 16. d5 {[%clk 00:18:26]}
{[%emt 00:00:22]} Qc7 {[%clk 00:14:06]} {[%emt 00:02:02]} 17. Qd3 {[%clk
00:15:09]} {[%emt 00:03:47]} Bd7 {[%clk 00:12:30]} {[%emt 00:02:05]} 18. Rdc1
{[%clk 00:12:42]} {[%emt 00:02:57]} b6 {[%clk 00:11:02]} {[%emt 00:01:59]} 19.
Rab1 {[%clk 00:12:17]} {[%emt 00:00:54]} Nb7 {[%clk 00:10:14]} {[%emt
00:01:18]} 20. b4 {[%clk 00:10:34]} {[%emt 00:02:14]} Ng4 {[%clk 00:07:43]}
{[%emt 00:03:01]} 21. Bd4 {[%clk 00:09:07]} {[%emt 00:01:56]} Ne5 {[%clk
00:06:29]} {[%emt 00:01:45]} 22. Bxe5 {[%clk 00:08:28]} {[%emt 00:01:08]} Bxe5
{[%clk 00:06:36]} {[%emt 00:00:23]} 23. Qb3 {[%clk 00:07:59]} {[%emt 00:01:00]}
e6 {[%clk 00:05:07]} {[%emt 00:01:58]} 24. g3 {[%clk 00:05:57]} {[%emt
00:02:32]} exd5 {[%clk 00:02:52]} {[%emt 00:02:45]} 25. cxd5 {[%clk 00:05:30]}
{[%emt 00:00:58]} Qxc1+ {[%clk 00:03:09]} {[%emt 00:00:13]} 26. Rxc1 {[%clk
00:05:49]} {[%emt 00:00:10]} Rxc1+ {[%clk 00:03:30]} {[%emt 00:00:09]} 27. Kg2
{[%clk 00:05:12]} {[%emt 00:01:07]} Rfc8 {[%clk 00:03:05]} {[%emt 00:00:56]} 28.
Nf3 {[%clk 00:05:04]} {[%emt 00:00:37]} R8c3 {[%clk 00:01:36]} {[%emt
00:01:58]} 29. Qb2 {[%clk 00:04:30]} {[%emt 00:01:05]} R1c2 {[%clk 00:01:43]}
{[%emt 00:00:23]} 30. Qb1 {[%clk 00:04:06]} {[%emt 00:00:54]} Rxe2 {[%clk
00:02:01]} {[%emt 00:00:12]} 31. Ng1 {[%clk 00:03:24]} {[%emt 00:01:12]} Rec2
{[%clk 00:01:15]} {[%emt 00:01:15]} 32. a4 {[%clk 00:02:19]} {[%emt 00:01:37]}
Bxa4 {[%clk 00:01:06]} {[%emt 00:00:39]} 33. Nf3 {[%clk 00:02:27]} {[%emt
00:00:21]} Bb5 {[%clk 00:00:58]} {[%emt 00:00:39]} 34. Nxe5 {[%clk 00:02:25]}
{[%emt 00:00:31]} Be2 {[%clk 00:00:33]} {[%emt 00:00:56]} 35. Nd7 {[%clk
00:01:51]} {[%emt 00:01:04]} Rc1 {[%clk 00:00:48]} {[%emt 00:00:15]} 36. Nf6+
{[%clk 00:01:19]} {[%emt 00:01:01]} Kg7 {[%clk 00:01:03]} {[%emt 00:00:16]} 37.
Ne8+ {[%clk 00:01:23]} {[%emt 00:00:26]} Kh8 {[%clk 00:01:17]} {[%emt
00:00:16]} 38. Qb2 {[%clk 00:01:40]} {[%emt 00:00:13]} Bf1+ {[%clk 00:01:20]}
{[%emt 00:00:27]} 39. Kg1 {[%clk 00:01:49]} {[%emt 00:00:20]} Bh3+ {[%clk
00:01:46]} {[%emt 00:00:04]} 0-1

[Event "Vegagatan U1800-A"]
[Site "Goteborgs Schackcentrum, Vegatan 20, Gothenburg, Sweden"]
[Date "2025.05.03"]
[Round "2.2"]
[White "Murugaraja, Yogeshwer"]
[Black "Al Jomaa, Valid"]
[Result "1-0"]
[TimeControl "30 minutes + 30 seconds per move from move one"]
[WhiteFideId "1779389"]
[BlackFideId "1766554"]
[WhiteElo "1762"]
[BlackElo "1720"]

1. Nf3 {[%clk 00:30:57]} {[%emt 00:00:02]} d5 {[%clk 00:30:54]} {[%emt
00:00:06]} 2. g3 {[%clk 00:31:14]} {[%emt 00:00:13]} c5 {[%clk 00:30:56]}
{[%emt 00:00:27]} 3. c4 {[%clk 00:31:13]} {[%emt 00:00:32]} dxc4 {[%clk
00:30:25]} {[%emt 00:01:02]} 4. Qa4+ {[%clk 00:31:22]} {[%emt 00:00:21]} Bd7
{[%clk 00:30:50]} {[%emt 00:00:05]} 5. Qxc4 {[%clk 00:31:47]} {[%emt 00:00:05]}
e6 {[%clk 00:30:08]} {[%emt 00:01:11]} 6. Ne5 {[%clk 00:31:03]} {[%emt
00:01:10]} Nc6 {[%clk 00:27:37]} {[%emt 00:03:04]} 7. Nxd7 {[%clk 00:30:56]}
{[%emt 00:00:38]} Qxd7 {[%clk 00:27:59]} {[%emt 00:00:08]} 8. Bg2 {[%clk
00:31:01]} {[%emt 00:00:25]} Nf6 {[%clk 00:26:41]} {[%emt 00:01:48]} 9. O-O
{[%clk 00:31:01]} {[%emt 00:00:29]} Be7 {[%clk 00:26:08]} {[%emt 00:01:04]} 10.
d3 {[%clk 00:29:28]} {[%emt 00:02:02]} O-O {[%clk 00:23:50]} {[%emt 00:02:49]}
11. b3 {[%clk 00:23:41]} {[%emt 00:06:17]} Nd4 {[%clk 00:19:09]} {[%emt
00:05:12]} 12. Re1 {[%clk 00:21:00]} {[%emt 00:03:09]} b5 {[%clk 00:17:36]}
{[%emt 00:02:05]} 13. Qc3 {[%clk 00:20:37]} {[%emt 00:00:47]} Nd5 {[%clk
00:17:13]} {[%emt 00:00:58]} 14. Qd2 {[%clk 00:19:22]} {[%emt 00:01:40]} Rac8
{[%clk 00:13:55]} {[%emt 00:03:53]} 15. e3 {[%clk 00:18:48]} {[%emt 00:01:03]}
Nc6 {[%clk 00:13:23]} {[%emt 00:01:03]} 16. Bb2 {[%clk 00:18:46]} {[%emt
00:00:33]} Ndb4 {[%clk 00:10:40]} {[%emt 00:03:12]} 17. Rd1 {[%clk 00:14:37]}
{[%emt 00:04:39]} Rfd8 {[%clk 00:10:54]} {[%emt 00:00:17]} 18. Bf1 {[%clk
00:12:22]} {[%emt 00:02:44]} Bf6 {[%clk 00:01:56]} {[%emt 00:09:29]} 19. Bxf6
{[%clk 00:12:08]} {[%emt 00:00:43]} gxf6 {[%clk 00:02:21]} {[%emt 00:00:05]} 20.
a3 {[%clk 00:10:40]} {[%emt 00:01:58]} Ne5 {[%clk 00:02:34]} {[%emt 00:00:17]}
21. Be2 {[%clk 00:08:49]} {[%emt 00:02:19]} Nbc6 {[%clk 00:00:47]} {[%emt
00:02:19]} 22. Nc3 {[%clk 00:07:05]} {[%emt 00:02:13]} Qb7 {[%clk 00:00:42]}
{[%emt 00:00:35]} 23. Ne4 {[%clk 00:07:00]} {[%emt 00:00:33]} Qe7 {[%clk
00:00:34]} {[%emt 00:00:41]} 24. Qc3 {[%clk 00:06:13]} {[%emt 00:01:14]} b4
{[%clk 00:00:31]} {[%emt 00:00:37]} 25. Qxc5 {[%clk 00:05:19]} {[%emt
00:01:24]} Qxc5 {[%clk 00:00:55]} {[%emt 00:00:06]} 26. Nxc5 {[%clk 00:05:47]}
{[%emt 00:00:02]} bxa3 {[%clk 00:00:46]} {[%emt 00:00:39]} 27. d4 {[%clk
00:05:39]} {[%emt 00:00:37]} Ng6 {[%clk 00:00:36]} {[%emt 00:00:40]} 28. Rxa3
{[%clk 00:06:00]} {[%emt 00:00:09]} Nxd4 {[%emt 00:00:40]} 29. exd4 {[%clk
00:06:16]} {[%emt 00:00:07]} e5 {[%clk 00:00:43]} {[%emt 00:00:20]} 30. Nb7
{[%clk 00:05:19]} {[%emt 00:01:22]} Rxd4 {[%clk 00:00:58]} {[%emt 00:00:21]} 31.
Rxd4 {[%clk 00:05:31]} {[%emt 00:00:18]} exd4 {[%clk 00:01:19]} {[%emt
00:00:08]} 32. Rxa7 {[%clk 00:05:36]} {[%emt 00:00:25]} Rc3 {[%clk 00:01:16]}
{[%emt 00:00:33]} 33. Ra8+ {[%clk 00:05:00]} {[%emt 00:01:07]} Kg7 {[%clk
00:01:41]} {[%emt 00:00:04]} 34. Bc4 {[%clk 00:05:25]} {[%emt 00:00:05]} Ne5
{[%clk 00:01:32]} {[%emt 00:00:39]} 35. Rd8 {[%clk 00:05:14]} {[%emt 00:00:38]}
Nxc4 {[%clk 00:01:06]} {[%emt 00:00:59]} 36. bxc4 {[%clk 00:05:36]} {[%emt
00:00:08]} Rxc4 {[%clk 00:01:31]} {[%emt 00:00:05]} 37. Nd6 {[%clk 00:05:59]}
{[%emt 00:00:07]} Rc7 {[%clk 00:01:05]} {[%emt 00:00:55]} 38. Ne8+ {[%clk
00:06:25]} {[%emt 00:00:06]} 1-0

[Event "Vegagatan U1800-A"]
[Site "Goteborgs Schackcentrum, Vegatan 20, Gothenburg, Sweden"]
[Date "2025.05.03"]
[Round "2.3"]
[White "Norberg, Peter"]
[Black "Nilsson, Christer"]
[Result "0-1"]
[TimeControl "30 minutes + 30 seconds per move from move one"]
[WhiteFideId "1776185"]
[BlackFideId "1777602"]
[WhiteElo "1799"]
[BlackElo "1710"]

1. e4 {[%clk 00:30:59]} {[%emt 00:00:01]} e5 {[%clk 00:30:38]} {[%emt
00:00:22]} 2. Nf3 {[%clk 00:31:25]} {[%emt 00:00:04]} Nc6 {[%clk 00:29:17]}
{[%emt 00:01:51]} 3. Bb5 {[%clk 00:31:29]} {[%emt 00:00:26]} a6 {[%clk
00:29:27]} {[%emt 00:00:20]} 4. Ba4 {[%clk 00:31:45]} {[%emt 00:00:15]} Nf6
{[%clk 00:28:07]} {[%emt 00:01:49]} 5. O-O {[%clk 00:31:53]} {[%emt 00:00:22]}
d6 {[%clk 00:28:11]} {[%emt 00:00:26]} 6. d3 {[%clk 00:24:04]} {[%emt
00:08:19]} h6 {[%clk 00:28:17]} {[%emt 00:00:24]} 7. h3 {[%clk 00:23:29]}
{[%emt 00:01:05]} Be7 {[%emt 00:08:25]} 8. c3 {[%clk 00:21:46]} {[%emt
00:02:10]} Bd7 {[%clk 00:19:24]} {[%emt 00:01:30]} 9. Be3 {[%clk 00:20:40]}
{[%emt 00:01:36]} b5 {[%clk 00:14:32]} {[%emt 00:05:22]} 10. Bb3 {[%clk
00:19:14]} {[%emt 00:01:58]} Na5 {[%clk 00:12:31]} {[%emt 00:02:30]} 11. Bc2
{[%clk 00:18:06]} {[%emt 00:01:37]} c5 {[%clk 00:11:30]} {[%emt 00:01:32]} 12.
b4 {[%clk 00:14:36]} {[%emt 00:04:00]} Nc6 {[%clk 00:10:50]} {[%emt 00:01:09]}
13. bxc5 {[%clk 00:06:00]} {[%emt 00:09:07]} dxc5 {[%clk 00:11:15]} {[%emt
00:00:05]} 14. Nbd2 {[%clk 00:05:16]} {[%emt 00:01:14]} Be6 {[%clk 00:10:29]}
{[%emt 00:01:16]} 15. Nb3 {[%clk 00:05:00]} {[%emt 00:00:47]} Nd7 {[%clk
00:10:43]} {[%emt 00:00:16]} 16. d4 {[%clk 00:03:09]} {[%emt 00:02:20]} exd4
{[%clk 00:09:32]} {[%emt 00:01:41]} 17. cxd4 {[%clk 00:03:06]} {[%emt
00:00:34]} Bxb3 {[%clk 00:06:04]} {[%emt 00:03:57]} 18. axb3 {[%clk 00:02:37]}
{[%emt 00:01:00]} Nb4 {[%clk 00:05:35]} {[%emt 00:00:58]} 19. dxc5 {[%clk
00:02:18]} {[%emt 00:00:49]} Nxc5 {[%clk 00:05:40]} {[%emt 00:00:25]} 20. Qxd8+
{[%clk 00:01:51]} {[%emt 00:00:57]} Rxd8 {[%clk 00:05:55]} {[%emt 00:00:15]} 21.
Bb1 {[%clk 00:01:24]} {[%emt 00:00:58]} O-O {[%clk 00:03:50]} {[%emt 00:02:34]}
22. Bxc5 {[%clk 00:01:32]} {[%emt 00:00:23]} Bxc5 {[%clk 00:04:08]} {[%emt
00:00:11]} 23. Ne1 {[%clk 00:01:05]} {[%emt 00:00:57]} Rd2 {[%clk 00:03:17]}
{[%emt 00:01:21]} 24. Nf3 {[%clk 00:01:04]} {[%emt 00:00:31]} Rb2 {[%clk
00:03:24]} {[%emt 00:00:23]} 25. Ra3 {[%clk 00:00:47]} {[%emt 00:00:48]} Rd8
{[%clk 00:02:56]} {[%emt 00:00:56]} 26. Ne5 {[%clk 00:00:47]} {[%emt 00:00:31]}
Rxf2 {[%clk 00:02:20]} {[%emt 00:01:06]} 27. Rxf2 {[%clk 00:00:56]} {[%emt
00:00:21]} Rd1+ {[%clk 00:02:38]} {[%emt 00:00:12]} 28. Kh2 {[%clk 00:01:21]}
{[%emt 00:00:05]} Bxf2 {[%clk 00:02:57]} {[%emt 00:00:11]} 29. Nd3 {[%clk
00:01:09]} {[%emt 00:00:42]} Nxd3 {[%clk 00:03:04]} {[%emt 00:00:24]} 30. Bxd3
{[%clk 00:00:45]} {[%emt 00:00:53]} Rxd3 {[%clk 00:03:31]} {[%emt 00:00:04]} 31.
Rxa6 {[%clk 00:01:11]} {[%emt 00:00:04]} b4 {[%clk 00:03:32]} {[%emt 00:00:28]}
32. Ra2 {[%clk 00:01:23]} {[%emt 00:00:18]} Be1 {[%clk 00:03:52]} {[%emt
00:00:10]} 33. Kg1 {[%clk 00:01:36]} {[%emt 00:00:17]} Rxb3 {[%clk 00:04:00]}
{[%emt 00:00:22]} 34. Re2 {[%clk 00:01:50]} {[%emt 00:00:16]} Rb1 {[%clk
00:04:18]} {[%emt 00:00:12]} 35. Kh2 {[%clk 00:02:14]} {[%emt 00:00:06]} b3
{[%clk 00:04:20]} {[%emt 00:00:28]} 36. h4 {[%clk 00:02:40]} {[%emt 00:00:04]}
Bc3 {[%clk 00:04:06]} {[%emt 00:00:45]} 37. Kg3 {[%clk 00:03:03]} {[%emt
00:00:06]} Rc1 {[%clk 00:04:13]} {[%emt 00:00:23]} 38. Kf3 {[%clk 00:03:24]}
{[%emt 00:00:09]} b2 {[%clk 00:04:31]} {[%emt 00:00:12]} 0-1

[Event "Vegagatan U1800-A"]
[Site "Goteborgs Schackcentrum, Vegatan 20, Gothenburg, Sweden"]
[Date "2025.05.03"]
[Round "2.4"]
[White "Zejak, Branislav"]
[Black "Evertsson, David"]
[Result "1-0"]
[TimeControl "30 minutes + 30 seconds per move from move one"]
[WhiteFideId "1722565"]
[BlackFideId "1777424"]
[WhiteElo "1768"]
[BlackElo "1705"]

1. c4 {[%clk 00:30:56]} {[%emt 00:00:03]} e5 {[%clk 00:30:51]} {[%emt
00:00:10]} 2. g3 {[%clk 00:30:41]} {[%emt 00:00:44]} c6 {[%clk 00:30:54]}
{[%emt 00:00:28]} 3. Nf3 {[%clk 00:27:48]} {[%emt 00:03:23]} e4 {[%clk
00:29:38]} {[%emt 00:01:46]} 4. Nd4 {[%clk 00:27:57]} {[%emt 00:00:21]} d5
{[%clk 00:28:19]} {[%emt 00:01:48]} 5. cxd5 {[%clk 00:26:13]} {[%emt 00:02:14]}
cxd5 {[%clk 00:22:41]} {[%emt 00:06:09]} 6. Bg2 {[%clk 00:21:14]} {[%emt
00:05:28]} Nc6 {[%clk 00:22:58]} {[%emt 00:00:14]} 7. Nxc6 {[%clk 00:20:39]}
{[%emt 00:01:05]} bxc6 {[%clk 00:23:21]} {[%emt 00:00:06]} 8. O-O {[%clk
00:20:20]} {[%emt 00:00:49]} Nf6 {[%clk 00:23:23]} {[%emt 00:00:28]} 9. d3
{[%clk 00:20:13]} {[%emt 00:00:37]} exd3 {[%clk 00:23:18]} {[%emt 00:00:36]} 10.
Qxd3 {[%clk 00:19:49]} {[%emt 00:00:53]} Be7 {[%clk 00:22:48]} {[%emt
00:01:00]} 11. b3 {[%clk 00:17:02]} {[%emt 00:03:18]} O-O {[%clk 00:22:42]}
{[%emt 00:00:35]} 12. Bb2 {[%clk 00:17:15]} {[%emt 00:00:17]} Be6 {[%clk
00:22:56]} {[%emt 00:00:17]} 13. Nd2 {[%clk 00:16:55]} {[%emt 00:00:50]} Rc8
{[%clk 00:22:45]} {[%emt 00:00:41]} 14. Nf3 {[%clk 00:12:13]} {[%emt 00:05:10]}
Qb6 {[%clk 00:21:36]} {[%emt 00:01:40]} 15. Ng5 {[%clk 00:11:45]} {[%emt
00:00:54]} g6 {[%clk 00:19:00]} {[%emt 00:03:10]} 16. e4 {[%clk 00:07:11]}
{[%emt 00:05:04]} Rfd8 {[%clk 00:10:04]} {[%emt 00:09:27]} 17. Qf3 {[%clk
00:01:56]} {[%emt 00:05:44]} d4 {[%clk 00:02:56]} {[%emt 00:07:39]} 18. Qf4
{[%clk 00:01:21]} {[%emt 00:01:04]} Nh5 {[%clk 00:01:51]} {[%emt 00:01:36]} 19.
Qd2 {[%clk 00:01:12]} {[%emt 00:00:39]} 1-0

[Event "Vegagatan U1800-A"]
[Site "Goteborgs Schackcentrum, Vegatan 20, Gothenburg, Sweden"]
[Date "2025.05.03"]
[Round "3.1"]
[White "Al Jomaa, Valid"]
[Black "Hitcher, Oscar"]
[Result "1/2-1/2"]
[TimeControl "30 minutes + 30 seconds per move from move one"]
[WhiteFideId "1766554"]
[BlackFideId "1746901"]
[WhiteElo "1720"]
[BlackElo "1716"]

1. d4 {[%clk 00:30:58]} {[%emt 00:00:02]} e6 {[%clk 00:30:47]} {[%emt
00:00:13]} 2. c4 {[%clk 00:31:25]} {[%emt 00:00:04]} d5 {[%clk 00:31:10]}
{[%emt 00:00:07]} 3. Nc3 {[%clk 00:31:49]} {[%emt 00:00:05]} Nf6 {[%clk
00:31:30]} {[%emt 00:00:09]} 4. Bg5 {[%clk 00:32:14]} {[%emt 00:00:05]} Be7
{[%clk 00:31:54]} {[%emt 00:00:07]} 5. e3 {[%clk 00:32:39]} {[%emt 00:00:06]}
O-O {[%clk 00:31:53]} {[%emt 00:00:30]} 6. Nf3 {[%clk 00:33:06]} {[%emt
00:00:03]} b6 {[%clk 00:31:52]} {[%emt 00:00:31]} 7. cxd5 {[%clk 00:33:28]}
{[%emt 00:00:08]} exd5 {[%clk 00:31:16]} {[%emt 00:01:05]} 8. Bd3 {[%clk
00:33:41]} {[%emt 00:00:18]} h6 {[%clk 00:29:40]} {[%emt 00:02:06]} 9. Bh4
{[%clk 00:33:46]} {[%emt 00:00:26]} Ba6 {[%clk 00:29:01]} {[%emt 00:01:09]} 10.
Bxa6 {[%clk 00:33:03]} {[%emt 00:01:13]} Nxa6 {[%clk 00:29:21]} {[%emt
00:00:10]} 11. Qe2 {[%clk 00:32:14]} {[%emt 00:01:18]} Nb4 {[%clk 00:28:57]}
{[%emt 00:00:53]} 12. a3 {[%clk 00:28:06]} {[%emt 00:04:40]} Nc6 {[%clk
00:29:02]} {[%emt 00:00:25]} 13. b4 {[%clk 00:27:06]} {[%emt 00:01:30]} Ne4
{[%clk 00:27:49]} {[%emt 00:01:42]} 14. Bxe7 {[%clk 00:23:59]} {[%emt
00:03:38]} Nxe7 {[%clk 00:27:11]} {[%emt 00:01:08]} 15. Nxe4 {[%clk 00:23:08]}
{[%emt 00:01:21]} dxe4 {[%clk 00:27:27]} {[%emt 00:00:13]} 16. Ne5 {[%clk
00:22:26]} {[%emt 00:01:12]} a5 {[%clk 00:25:24]} {[%emt 00:02:33]} 17. b5
{[%clk 00:21:47]} {[%emt 00:01:09]} Qd5 {[%emt 00:07:23]} 18. Qc4 {[%clk
00:16:10]} Qxc4 {[%clk 00:24:00]} {[%emt 00:01:07]} 19. Nxc4 {[%clk 00:16:35]}
{[%emt 00:00:06]} Nd5 {[%clk 00:22:21]} {[%emt 00:02:08]} 20. Kd2 {[%clk
00:14:21]} {[%emt 00:02:43]} g5 {[%clk 00:22:18]} {[%emt 00:00:33]} 21. Rac1
{[%clk 00:12:24]} {[%emt 00:02:29]} f6 {[%clk 00:22:09]} {[%emt 00:00:38]} 22.
h3 {[%clk 00:07:47]} {[%emt 00:05:08]} Kg7 {[%clk 00:22:31]} {[%emt 00:00:08]}
23. Nb2 {[%clk 00:07:20]} {[%emt 00:00:57]} f5 {[%clk 00:22:25]} {[%emt
00:00:35]} 24. Nd1 {[%clk 00:02:03]} {[%emt 00:05:47]} f4 {[%clk 00:22:14]}
{[%emt 00:00:41]} 25. Ke2 {[%clk 00:01:48]} {[%emt 00:00:45]} Rac8 {[%clk
00:22:09]} {[%emt 00:00:35]} 26. Nc3 {[%clk 00:01:52]} {[%emt 00:00:26]} Nxc3+
{[%clk 00:21:14]} {[%emt 00:01:25]} 27. Rxc3 {[%clk 00:02:18]} {[%emt
00:00:04]} Rf5 {[%clk 00:20:49]} {[%emt 00:00:55]} 28. Rhc1 {[%clk 00:02:09]}
{[%emt 00:00:39]} Rxb5 {[%clk 00:18:44]} {[%emt 00:02:35]} 29. Rxc7+ {[%clk
00:02:22]} {[%emt 00:00:17]} Rxc7 {[%clk 00:19:02]} {[%emt 00:00:12]} 30. Rxc7+
{[%clk 00:02:51]} Kg6 {[%clk 00:19:12]} {[%emt 00:00:20]} 31. Rc6+ {[%clk
00:01:20]} {[%emt 00:02:01]} Kg7 {[%clk 00:18:56]} {[%emt 00:00:46]} 32. d5
{[%clk 00:00:41]} {[%emt 00:01:10]} Rxd5 {[%clk 00:16:18]} {[%emt 00:03:08]} 33.
Rxb6 {[%clk 00:01:07]} {[%emt 00:00:04]} Rd3 {[%clk 00:15:21]} {[%emt
00:01:25]} 34. Re6 {[%clk 00:00:41]} {[%emt 00:00:56]} Rxa3 {[%clk 00:15:19]}
{[%emt 00:00:33]} 35. Rxe4 {[%clk 00:01:06]} {[%emt 00:00:05]} Ra2+ {[%clk
00:14:11]} {[%emt 00:01:37]} 36. Kf1 {[%clk 00:01:19]} {[%emt 00:00:18]} Ra1+
{[%clk 00:14:05]} {[%emt 00:00:36]} 37. Ke2 {[%clk 00:01:43]} {[%emt 00:00:07]}
Ra2+ {[%clk 00:14:14]} {[%emt 00:00:21]} 38. Kf1 {[%clk 00:02:07]} {[%emt
00:00:05]} 1/2-1/2

[Event "Vegagatan U1800-A"]
[Site "Goteborgs Schackcentrum, Vegatan 20, Gothenburg, Sweden"]
[Date "2025.05.03"]
[Round "3.2"]
[White "Gustavsson, Ville"]
[Black "Norberg, Peter"]
[Result "0-1"]
[TimeControl "30 minutes + 30 seconds per move from move one"]
[WhiteFideId "1792822"]
[BlackFideId "1776185"]
[WhiteElo "1752"]
[BlackElo "1799"]

1. e4 {[%clk 00:30:58]} {[%emt 00:00:01]} e5 {[%clk 00:30:56]} {[%emt
00:00:05]} 2. Nf3 {[%clk 00:31:24]} {[%emt 00:00:04]} Nc6 {[%clk 00:31:18]}
{[%emt 00:00:07]} 3. Bb5 {[%clk 00:31:48]} {[%emt 00:00:06]} Nf6 {[%clk
00:31:26]} {[%emt 00:00:22]} 4. O-O {[%clk 00:31:52]} {[%emt 00:00:26]} Nxe4
{[%clk 00:31:49]} {[%emt 00:00:07]} 5. Re1 {[%clk 00:32:08]} {[%emt 00:00:15]}
Nd6 {[%clk 00:31:48]} {[%emt 00:00:31]} 6. Nxe5 {[%clk 00:28:32]} {[%emt
00:04:04]} Be7 {[%clk 00:30:24]} {[%emt 00:01:55]} 7. Ba4 {[%clk 00:25:17]}
{[%emt 00:03:45]} O-O {[%clk 00:28:52]} {[%emt 00:02:02]} 8. Nc3 {[%clk
00:24:48]} {[%emt 00:00:59]} Nxe5 {[%clk 00:26:22]} {[%emt 00:03:01]} 9. Rxe5
{[%clk 00:25:06]} {[%emt 00:00:11]} Bf6 {[%clk 00:26:02]} {[%emt 00:00:51]} 10.
Re1 {[%clk 00:24:36]} {[%emt 00:01:00]} c6 {[%clk 00:25:26]} {[%emt 00:01:06]}
11. d3 {[%clk 00:23:18]} {[%emt 00:01:47]} a5 {[%clk 00:20:18]} {[%emt
00:05:40]} 12. Bb3 {[%clk 00:18:16]} {[%emt 00:05:30]} Bxc3 {[%clk 00:14:56]}
{[%emt 00:05:52]} 13. bxc3 {[%clk 00:18:29]} {[%emt 00:00:16]} a4 {[%clk
00:14:09]} {[%emt 00:01:18]} 14. Bf4 {[%clk 00:15:02]} {[%emt 00:03:55]} Nf5
{[%clk 00:10:50]} {[%emt 00:03:52]} 15. g4 {[%clk 00:05:54]} {[%emt 00:09:37]}
Nh4 {[%clk 00:08:00]} {[%emt 00:03:20]} 16. Bd6 {[%clk 00:03:27]} {[%emt
00:02:57]} Re8 {[%clk 00:06:27]} {[%emt 00:02:03]} 17. Bxf7+ {[%clk 00:01:38]}
{[%emt 00:02:19]} Kxf7 {[%clk 00:06:29]} {[%emt 00:00:28]} 18. Rxe8 {[%clk
00:00:33]} {[%emt 00:01:35]} Qxe8 {[%clk 00:06:41]} {[%emt 00:00:18]} 19. Qc1
{[%clk 00:00:41]} {[%emt 00:00:23]} Kg8 {[%clk 00:04:14]} {[%emt 00:02:57]} 0-1